fUSD/lending_fUSD_20241121
["ID","MTS","AMOUNT","RATE_DAILY","PERIOD"]
[342903955,1732199480470,-1143.04,0.00042465,18]
[342903956,1732199480479,-575.56,0.00042465,18]
[342903957,1732199480489,-500.0,0.00042465,18]
[342903958,1732199480498,-500.0,0.00042465,18]
[342903959,1732199480508,-500.0,0.00042465,18]
[342903960,1732199480518,-667.59,0.00042465,18]
[342903961,1732199480528,-503.3,0.00042465,18]
[342903962,1732199480538,-500.0,0.00042465,18]
[342903963,1732199480548,-500.0,0.00042465,18]
[342903964,1732199480557,-506.82,0.00042465,18]
[342903965,1732199480568,-500.0,0.00042465,18]
[342903966,1732199480577,-2396.91,0.00042465,18]
[342903967,1732199480587,-500.0,0.00042465,18]
[342903968,1732199480596,-500.0,0.00042465,18]
[342903969,1732199480606,-500.0,0.00042465,18]
[342903970,1732199480616,-500.0,0.00042465,18]
[342903971,1732199480625,-2392.3,0.00042465,18]
[342903972,1732199480635,-576.57,0.00042465,18]
[342903973,1732199480645,-637.03898054,0.00042465,18]
[342903974,1732199480654,-1817.41,0.00042465,18]
[342903975,1732199480663,-734.85,0.00042465,18]
[342903976,1732199480673,-500.0,0.00042465,18]
[342903977,1732199480683,-500.0,0.00042465,18]
[342903978,1732199480696,-891.12,0.00042465,18]
[342903979,1732199480706,-1535.09,0.00042465,18]
[342903980,1732199480716,-1171.48,0.00042465,18]
[342903981,1732199480726,-500.0,0.00042465,18]
[342903982,1732199480735,-930.5,0.00042465,18]
[342903983,1732199480745,-1073.6,0.00042465,18]
[342903984,1732199480755,-500.0,0.00042465,18]
[342903985,1732199480765,-1426.95,0.00042465,18]
[342903986,1732199480777,-2396.92,0.00042465,18]
[342903987,1732199480787,-2250.73,0.00042465,18]
[342903988,1732199480796,-4948.4,0.00042465,18]
[342903989,1732199480806,-500.0,0.00042465,18]
[342903990,1732199480817,-500.0,0.00042465,18]
[342903991,1732199480828,-500.0,0.00042465,18]
[342903992,1732199480837,-1324.11,0.00042465,18]
[342903993,1732199480847,-521.33005783,0.00042465,18]
[342903994,1732199480857,-914.54,0.00042465,18]
[342903995,1732199480867,-500.0,0.00042465,18]
[342903996,1732199480877,-534.27,0.00042465,7]
[342903997,1732199480887,-705.08,0.00042465,18]
[342903998,1732199480896,-653.14,0.00042465,18]
[342903999,1732199480906,-632.98,0.00042465,18]
[342904000,1732199480916,-500.0,0.00042465,18]
[342904001,1732199480925,-668.12,0.00042465,18]
[342904002,1732199480935,-500.0,0.00042465,18]
[342904003,1732199480948,-500.0,0.00042465,18]
[342904004,1732199480958,-1184.36,0.00042465,18]
[342904005,1732199480967,-500.0,0.00042465,18]
[342904006,1732199480977,-500.0,0.00042465,18]
[342904007,1732199480987,-500.0,0.00042465,18]
[342904008,1732199480996,-543.6,0.00042465,18]
[342904009,1732199481006,-2215.45,0.00042465,18]
[342904010,1732199481016,-500.0,0.00042465,18]
[342904011,1732199481025,-500.0,0.00042465,18]
[342904012,1732199481034,-1478.2,0.00042465,18]
[342904013,1732199481043,-1426.49,0.00042465,18]
[342904014,1732199481053,-790.05,0.00042465,18]
[342904015,1732199481062,-500.0,0.00042465,18]
[342904016,1732199481072,-500.0,0.00042465,18]
[342904017,1732199481081,-386.23527354,0.00042465,18]
[342904018,1732199481091,-600.57,0.00042465,18]
[342904019,1732199481100,-529.75,0.00042465,18]
[342904020,1732199481109,-500.0,0.00042465,18]
[342904021,1732199481119,-2122.71,0.00042465,18]
[342904022,1732199481129,-859.01,0.00042465,18]
[342904023,1732199481139,-500.0,0.00042465,18]
[342904024,1732199481148,-500.0,0.00042465,18]
[342904025,1732199481157,-1977.19,0.00042465,18]
[342904026,1732199481167,-1432.38,0.00042465,18]
[342904027,1732199481176,-500.0,0.00042465,18]
[342904028,1732199481185,-2472.57,0.00042465,18]
[342904029,1732199481201,-606.18,0.00042465,18]
[342904030,1732199481211,-629.86,0.00042465,18]
[342904031,1732199481221,-500.0,0.00042465,18]
[342904032,1732199481231,-1009.33,0.00042465,18]
[342904033,1732199481240,-204.31060386,0.00042465,18]
[342904034,1732199481249,-1653.26,0.00042465,18]
[342904035,1732199481259,-500.0,0.00042465,18]
[342904036,1732199481269,-6237.96,0.00042465,18]
[342904037,1732199481278,-1033.33,0.00042465,18]
[342904038,1732199481288,-500.0,0.00042465,18]
[342904039,1732199481298,-563.25,0.00042465,18]
[342904040,1732199481307,-787.81,0.00042465,18]
[342904041,1732199481317,-783.85,0.00042465,18]
[342904042,1732199481326,-845.5503222,0.00042465,18]
[342904043,1732199481671,-545.51474342,0.00042465,18]
[342904044,1732199481684,-370.17185201,0.00042465,18]
[342904045,1732199481700,-295.75308237,0.00042465,18]
[342904046,1732199481710,-2137.16,0.00042465,18]
[342904047,1732199481720,-500.0,0.00042465,18]
[342904048,1732199481729,-299.57459328,0.00042465,18]
[342904049,1732199482009,-630.41,0.00041095,18]
[342904050,1732199482019,-500.0,0.00041095,18]
[342904051,1732199482029,-1254.31540672,0.00042465,18]
[342904052,1732199482039,-500.0,0.00042465,18]
[342904053,1732199482049,-3963.56,0.00042465,18]
[342904054,1732199482059,-151.0,0.00042465,14]
[342904055,1732199482070,-500.0,0.00042465,18]
[342904056,1732199482079,-222.5770515,0.00042465,18]
[342904057,1732199482089,-772.17,0.00042465,18]
[342904058,1732199482099,-1945.98,0.00042465,18]
[342904059,1732199482109,-500.0,0.00042465,18]
[342904060,1732199482119,-5549.97,0.00042465,18]
[342904061,1732199482128,-1287.87,0.00042465,18]
[342904062,1732199482138,-365.76178398,0.00042465,18]
[342904063,1732199482148,-1814.21,0.00042465,18]
[342904064,1732199482158,-500.0,0.00042465,18]
[342904065,1732199482167,-517.01,0.00042465,18]
[342904066,1732199482177,-1235.91,0.00042465,18]
[342904067,1732199482187,-500.0,0.00042465,18]
[342904068,1732199482200,-4258.98528379,0.00042465,18]
[342904069,1732199482212,-453.3464397,0.00042465,18]
[342904070,1732199482224,-164.12827651,0.00042465,18]
[342904071,1732199482234,-1091.75,0.00042465,18]
[342904072,1732199482244,-507.38,0.00042465,18]
[342904073,1732199482254,-500.0,0.00042465,18]
[342904074,1732199482264,-506.78222749,0.00042465,18]
[342904075,1732199482276,-170.15777251,0.00042465,18]
[342904076,1732199482285,-924.03545191,0.00042465,18]
[342904077,1732199482298,-1922.99454809,0.00042465,18]
[342904078,1732199482308,-557.09,0.00042465,18]
[342904079,1732199482318,-3509.44,0.00042465,18]
[342904080,1732199482328,-367.743508,0.00042465,14]
[342904081,1732199482337,-500.0,0.00042465,18]
[342904082,1732199482348,-3537.99,0.00042465,18]
[342904083,1732199482357,-500.0,0.00042465,18]
[342904084,1732199482367,-847.95,0.00042465,18]
[342904085,1732199482377,-367.743498,0.00042465,14]
[342904086,1732199482386,-500.0,0.00042465,18]
[342904087,1732199482396,-1883.13,0.00042465,18]
[342904088,1732199482405,-7181.82,0.00042465,18]
[342904089,1732199482415,-520.42,0.00042465,18]
[342904090,1732199482424,-743.52,0.00042465,18]
[342904091,1732199482764,-500.0,0.00042465,18]
[342904092,1732199482776,-863.4,0.00042465,18]
[342904093,1732199482785,-619.34,0.00042465,18]
[342904094,1732199482794,-281.20726648,0.00042465,18]
[342904095,1732199482804,-1290.72,0.00042465,18]
[342904096,1732199482814,-2661.51,0.00042465,18]
[342904097,1732199482824,-747.11,0.00042465,18]
[342904098,1732199482833,-950.06,0.00042465,18]
[342904099,1732199482844,-1336.14,0.00042465,18]
[342904100,1732199482855,-500.0,0.00042465,18]
[342904101,1732199482865,-509.02,0.00042465,18]
[342904102,1732199482874,-732.65,0.00042465,18]
[342904103,1732199482884,-527.39,0.00042465,18]
[342904104,1732199482893,-529.36,0.00042465,18]
[342904105,1732199482902,-500.0,0.00042465,18]
[342904106,1732199482912,-1619.03,0.00042465,18]
[342904107,1732199482921,-500.0,0.00042465,18]
[342904108,1732199482931,-1664.0,0.00042465,18]
[342904109,1732199482947,-500.0,0.00042465,18]
[342904110,1732199482956,-500.0,0.00042465,18]
[342904111,1732199482965,-2326.55,0.00042465,18]
[342904112,1732199482975,-639.44,0.00042465,18]
[342904113,1732199482984,-500.0,0.00042465,18]
[342904114,1732199482993,-827.15,0.00042465,18]
[342904115,1732199483003,-723.15,0.00042465,18]
[342904116,1732199483012,-813.35,0.00042465,18]
[342904117,1732199483021,-500.0,0.00042465,18]
[342904118,1732199483030,-583.46,0.00042465,18]
[342904119,1732199483041,-500.0,0.00042465,18]
[342904120,1732199483052,-576.13,0.00042465,18]
[342904121,1732199483062,-500.0,0.00042465,18]
[342904122,1732199483074,-6737.18,0.00042465,18]
[342904123,1732199483084,-616.15,0.00042465,18]
[342904124,1732199483093,-500.0,0.00042465,18]
[342904125,1732199483103,-500.0,0.00042465,18]
[342904126,1732199483113,-500.0,0.00042465,18]
[342904127,1732199483125,-500.0,0.00042465,18]
[342904128,1732199483134,-1193.64,0.00042465,18]
[342904129,1732199483143,-500.0,0.00042465,18]
[342904130,1732199483153,-500.0,0.00042465,120]
[342904131,1732199483163,-510.54,0.00042465,18]
[342904132,1732199483173,-430.28743969,0.00042486,120]
[342904133,1732199483182,-172.05797662,0.00042486,120]
[342904134,1732199483196,-204.0,0.000425,30]
[342904135,1732199483205,-201.0,0.000425,30]
[342904136,1732199483214,-240.0,0.000425,2]
[342904137,1732199483224,-800.0,0.00042519,120]
[342904138,1732199483234,-229.84,0.00042521,30]
[342904139,1732199483244,-167.94,0.0004254,2]
[342904140,1732199483255,-80000.0,0.0004255,120]
[342904141,1732199483265,-80000.0,0.0004259,120]
[342904142,1732199483275,-3670.7,0.0004263,120]
[342904143,1732199483285,-1333.53,0.0004263,120]
[342904144,1732199483295,-146407.13618434,0.0004269,60]
[342904145,1732199483305,-1889.79,0.00042691,30]
[342904146,1732199483315,-500.0,0.00042739,18]
[342904147,1732199483324,-500.0,0.00042739,18]
[342904148,1732199483334,-500.0,0.00042739,18]
[342904149,1732199483343,-500.0,0.00042739,18]
[342904150,1732199483352,-500.0,0.00042739,18]
[342904151,1732199483362,-500.0,0.00042739,18]
[342904152,1732199483371,-500.0,0.00042739,18]
[342904153,1732199483380,-497.83842079,0.00042739,18]
[342904154,1732199483390,-500.0,0.00042739,18]
[342904155,1732199483399,-500.0,0.00042739,18]
[342904156,1732199483409,-578.51600586,0.00042739,18]
[342904157,1732199483419,-500.0,0.00042739,18]
[342904158,1732199483428,-500.0,0.00042739,18]
[342904159,1732199483438,-500.0,0.00042739,18]
[342904160,1732199483452,-780.83,0.00042739,18]
[342904161,1732199483462,-778.02,0.00042739,18]
[342904162,1732199483472,-841.3,0.00042739,18]
[342904163,1732199483483,-500.0,0.00042739,18]
[342904164,1732199483492,-500.0,0.00042739,18]
[342904165,1732199483503,-500.0,0.00042739,18]
[342904166,1732199483513,-644.88,0.00042739,18]
[342904167,1732199483522,-500.74,0.00042739,18]
[342904168,1732199483533,-500.0,0.00042739,18]
[342904169,1732199483543,-500.0,0.00042739,18]
[342904170,1732199483553,-500.0,0.00042739,18]
[342904171,1732199483562,-500.0,0.00042739,18]
[342904172,1732199483580,-1032.66,0.00042739,18]
[342904173,1732199483590,-500.0,0.00042739,18]
[342904174,1732199483599,-500.0,0.00042739,18]
[342904175,1732199483608,-500.0,0.00042739,18]
[342904176,1732199483617,-500.0,0.00042739,18]
[342904177,1732199483627,-500.0,0.00042739,18]
[342904178,1732199483637,-815.66,0.00042739,18]
[342904179,1732199483646,-661.83,0.00042739,18]
[342904180,1732199483656,-500.0,0.00042739,18]
[342904181,1732199483666,-500.0,0.00042739,18]
[342904182,1732199483676,-500.0,0.00042739,18]
[342904183,1732199483686,-500.0,0.00042739,120]
[342904184,1732199483701,-500.0,0.00042739,18]
[342904185,1732199483711,-500.0,0.00042739,18]
[342904186,1732199483720,-500.0,0.00042739,18]
[342904187,1732199483730,-500.0,0.00042739,18]
[342904188,1732199483740,-1263.69,0.00042739,18]
[342904189,1732199483750,-500.0,0.00042739,18]
[342904190,1732199483760,-500.0,0.00042739,18]
[342904191,1732199483771,-500.0,0.00042739,18]
[342904192,1732199483782,-500.0,0.00042739,18]
[342904193,1732199483791,-500.0,0.00042739,18]
[342904194,1732199483802,-519.82,0.00042739,18]
[342904195,1732199483812,-653.14,0.00042739,18]
[342904196,1732199483822,-500.0,0.00042739,18]
[342904197,1732199483832,-500.0,0.00042739,18]
[342904198,1732199483842,-500.0,0.00042739,18]
[342904199,1732199483855,-500.0,0.00042739,18]
[342904200,1732199483865,-500.0,0.00042739,18]
[342904201,1732199483875,-503.14,0.00042739,18]
[342904202,1732199483884,-540.62,0.00042739,18]
[342904203,1732199483894,-500.0,0.00042739,18]
[342904204,1732199483905,-500.0,0.00042739,18]
[342904205,1732199483916,-619.85,0.00042739,18]
[342904206,1732199483929,-500.0,0.00042739,18]
[342904207,1732199483939,-500.0,0.00042739,18]
[342904208,1732199483956,-587.02,0.00042739,18]
[342904209,1732199483965,-1022.9,0.00042739,18]
[342904210,1732199483975,-500.0,0.00042739,18]
[342904211,1732199483985,-544.47,0.00042739,18]
[342904212,1732199483995,-500.0,0.00042739,18]
[342904213,1732199484005,-500.0,0.00042739,18]
[342904214,1732199484014,-598.89,0.00042739,18]
[342904215,1732199484024,-500.0,0.00042739,18]
[342904216,1732199484034,-500.0,0.00042739,18]
[342904217,1732199484044,-500.0,0.00042739,18]
[342904218,1732199484053,-575.52,0.00042739,18]
[342904219,1732199484062,-500.0,0.00042739,18]
[342904220,1732199484071,-500.0,0.00042739,18]
[342904221,1732199484081,-752.96,0.00042739,18]
[342904222,1732199484091,-664.75,0.00042739,18]
[342904223,1732199484101,-500.0,0.00042739,18]
[342904224,1732199484111,-500.0,0.00042739,18]
[342904225,1732199484121,-1075.41,0.00042739,18]
[342904226,1732199484130,-200.0,0.00042739,7]
[342904227,1732199484140,-500.0,0.00042739,18]
[342904228,1732199484150,-500.0,0.00042739,18]
[342904229,1732199484160,-531.22,0.00042739,18]
[342904230,1732199484170,-500.0,0.00042739,18]
[342904231,1732199484179,-551.95,0.00042739,18]
[342904232,1732199484189,-500.0,0.00042739,18]
[342904233,1732199484204,-976.25,0.00042739,18]
[342904234,1732199484214,-1323.6,0.00042739,18]
[342904235,1732199484223,-455.07763113,0.00042739,18]
[342904236,1732199484233,-490.55188157,0.00042739,18]
[342904237,1732199484242,-500.0,0.00042739,18]
[342904238,1732199484251,-500.0,0.00042739,7]
[342904239,1732199484261,-500.0,0.00042739,18]
[342904240,1732199484272,-544.81,0.00042739,18]
[342904241,1732199484282,-370.83900085,0.00042739,18]
[342904242,1732199484293,-500.0,0.00042739,18]
[342904243,1732199484303,-500.0,0.00042739,18]
[342904244,1732199484314,-1368.0,0.00042739,18]
[342904245,1732199484324,-500.0,0.00042739,18]
[342904246,1732199484335,-617.18,0.00042739,18]
[342904247,1732199484344,-500.0,0.00042739,18]
[342904248,1732199484354,-500.0,0.00042739,18]
[342904249,1732199484364,-500.0,0.00042739,18]
[342904250,1732199484373,-567.49,0.00042739,18]
[342904251,1732199484382,-586.87,0.00042739,18]
[342904252,1732199484392,-500.0,0.00042739,18]
[342904253,1732199484401,-500.0,0.00042739,18]
[342904254,1732199484410,-500.0,0.00042739,18]
[342904255,1732199484421,-500.0,0.00042739,18]
[342904256,1732199484431,-666.68,0.00042739,18]
[342904257,1732199484447,-514.95,0.00042739,18]
[342904258,1732199484456,-500.0,0.00042739,18]
[342904259,1732199484466,-1095.65,0.00042739,18]
[342904260,1732199484476,-669.92,0.00042739,18]
[342904261,1732199484485,-500.0,0.00042739,18]
[342904262,1732199484495,-500.0,0.00042739,18]
[342904263,1732199484505,-500.0,0.00042739,18]
[342904264,1732199484514,-846.58,0.00042739,18]
[342904265,1732199484523,-1076.99,0.00042739,18]
[342904266,1732199484533,-500.0,0.00042739,18]
[342904267,1732199484542,-598.83,0.00042739,18]
[342904268,1732199484552,-655.07,0.00042739,18]
[342904269,1732199484562,-500.0,0.00042739,18]
[342904270,1732199484572,-790.41,0.00042739,18]
[342904271,1732199484581,-500.0,0.00042739,18]
[342904272,1732199484591,-911.49,0.00042739,18]
[342904273,1732199484600,-500.0,0.00042739,18]
[342904274,1732199484610,-500.0,0.00042739,18]
[342904275,1732199484619,-500.0,0.00042739,18]
[342904276,1732199484629,-1682.08,0.00042739,18]
[342904277,1732199484639,-500.0,0.00042739,18]
[342904278,1732199484649,-1107.76,0.00042739,18]
[342904279,1732199484659,-875.4,0.00042739,18]
[342904280,1732199484669,-1132.01,0.00042739,18]
[342904281,1732199484678,-500.0,0.00042739,18]
[342904282,1732199484688,-623.95,0.00042739,18]
[342904283,1732199484701,-500.0,0.00042739,18]
[342904284,1732199484711,-500.0,0.00042739,18]
[342904285,1732199484721,-500.0,0.00042739,18]
[342904286,1732199484731,-500.0,0.00042739,18]
[342904287,1732199484741,-533.69,0.00042739,18]
[342904288,1732199484751,-500.0,0.00042739,18]
[342904289,1732199484762,-920.48,0.00042739,18]
[342904290,1732199484774,-773.68,0.00042739,18]
[342904291,1732199484783,-805.51,0.00042739,18]
[342904292,1732199484793,-500.0,0.00042739,18]
[342904293,1732199484803,-500.0,0.00042739,18]
[342904294,1732199484813,-500.0,0.00042739,18]
[342904295,1732199484823,-526.27,0.00042739,18]
[342904296,1732199484832,-1069.79,0.00042739,18]
[342904297,1732199484842,-683.11,0.00042739,18]
[342904298,1732199484855,-500.0,0.00042739,18]
[342904299,1732199484865,-500.0,0.00042739,18]
[342904300,1732199484875,-500.0,0.00042739,18]
[342904301,1732199484884,-1188.11,0.00042739,18]
[342904302,1732199484895,-1080.92,0.00042739,18]
[342904303,1732199484906,-500.0,0.00042739,18]
[342904304,1732199484915,-500.0,0.00042739,18]
[342904305,1732199484926,-703.8,0.00042739,18]
[342904306,1732199484937,-500.0,0.00042739,18]
[342904307,1732199484949,-500.0,0.00042739,18]
[342904308,1732199484959,-900.83,0.00042739,18]
[342904309,1732199484969,-527.44,0.00042739,18]
[342904310,1732199484979,-500.0,0.00042739,18]
[342904311,1732199484989,-881.44,0.00042739,18]
[342904312,1732199485000,-500.0,0.00042739,18]
[342904313,1732199485010,-500.0,0.00042739,18]
[342904314,1732199485020,-500.0,0.00042739,18]
[342904315,1732199485030,-500.0,0.00042739,18]
[342904316,1732199485040,-513.53,0.00042739,18]
[342904317,1732199485049,-175.09912434,0.00042739,18]
[342904318,1732199485059,-500.0,0.00042739,18]
[342904319,1732199485069,-592.27,0.00042739,18]
[342904320,1732199485079,-500.0,0.00042739,18]
[342904321,1732199485089,-529.9,0.00042739,18]
[342904322,1732199485099,-500.0,0.00042739,18]
[342904323,1732199485108,-241.04822595,0.00042739,18]
[342904324,1732199485118,-500.0,0.00042739,18]
[342904325,1732199485127,-531.84,0.00042739,18]
[342904326,1732199485136,-500.0,0.00042739,18]
[342904327,1732199485146,-466.06375726,0.00042739,18]
[342904328,1732199485157,-927.48,0.00042739,18]
[342904329,1732199485166,-580.51,0.00042739,18]
[342904330,1732199485251,-500.0,0.00042739,18]
[342904331,1732199485262,-552.74,0.00042739,18]
[342904332,1732199485272,-1042.61,0.00042739,18]
[342904333,1732199485282,-500.0,0.00042739,18]
[342904334,1732199485292,-539.14,0.00042739,18]
[342904335,1732199485301,-500.0,0.00042739,18]
[342904336,1732199485311,-500.0,0.00042739,18]
[342904337,1732199485320,-500.0,0.00042739,18]
[342904338,1732199485330,-500.0,0.00042739,18]
[342904339,1732199485339,-440.14,0.00042739,18]
[342904340,1732199485349,-325.04611757,0.00042739,18]
[342904341,1732199485359,-528.42,0.00042739,18]
[342904342,1732199485368,-500.0,0.00042739,18]
[342904343,1732199485377,-1433.81,0.00042739,18]
[342904344,1732199485387,-500.0,0.00042739,18]
[342904345,1732199485396,-500.0,0.00042739,18]
[342904346,1732199485405,-567.55,0.00042739,18]
[342904347,1732199485414,-1338.66,0.00042739,18]
[342904348,1732199485423,-500.0,0.00042739,18]
[342904349,1732199485433,-500.0,0.00042739,18]
[342904350,1732199485445,-1410.19,0.00042739,18]
[342904351,1732199485455,-500.0,0.00042739,18]
[342904352,1732199485465,-699.66,0.00042739,18]
[342904353,1732199485475,-500.0,0.00042739,18]
[342904354,1732199485484,-500.0,0.00042739,18]
[342904355,1732199485494,-500.0,0.00042739,18]
[342904356,1732199485504,-500.0,0.00042739,18]
[342904357,1732199485514,-500.0,0.00042739,18]
[342904358,1732199485524,-643.83,0.00042739,18]
[342904359,1732199485533,-500.0,0.00042739,18]
[342904360,1732199485543,-500.0,0.00042739,18]
[342904361,1732199485552,-500.0,0.00042739,18]
[342904362,1732199485562,-563.28,0.00042739,18]
[342904363,1732199485571,-553.62501195,0.00042739,18]
[342904364,1732199485581,-715.43,0.00042739,18]
[342904365,1732199485591,-500.0,0.00042739,18]
[342904366,1732199485600,-1239.95,0.00042739,18]
[342904367,1732199485610,-525.39,0.00042739,18]
[342904368,1732199485619,-500.0,0.00042739,18]
[342904369,1732199485629,-500.0,0.00042739,18]
[342904370,1732199485638,-291.0446706,0.00042739,18]
[342904371,1732199485648,-500.0,0.00042739,18]
[342904372,1732199485657,-500.0,0.00042739,18]
[342904373,1732199485666,-849.0,0.00042739,18]
[342904374,1732199485676,-1580.19,0.00042739,18]
[342904375,1732199485685,-500.0,0.00042739,18]
[342904376,1732199485699,-500.0,0.00042739,18]
[342904377,1732199485708,-500.0,0.00042739,18]
[342904378,1732199485718,-500.0,0.00042739,18]
[342904379,1732199485728,-500.0,0.00042739,18]
[342904380,1732199485738,-576.19,0.00042739,18]
[342904381,1732199485747,-500.0,0.00042739,18]
[342904382,1732199485757,-1184.06,0.00042739,18]
[342904383,1732199485769,-627.25,0.00042739,18]
[342904384,1732199485779,-500.0,0.00042739,18]
[342904385,1732199485788,-782.8,0.00042739,18]
[342904386,1732199485798,-1046.52,0.00042739,18]
[342904387,1732199485807,-500.0,0.00042739,18]
[342904388,1732199485818,-500.0,0.00042739,18]
[342904389,1732199485827,-831.01,0.00042739,18]
[342904390,1732199485836,-500.0,0.00042739,18]
[342904391,1732199485847,-500.0,0.00042739,18]
[342904392,1732199485857,-500.0,0.00042739,18]
[342904393,1732199485866,-724.43,0.00042739,18]
[342904394,1732199485876,-500.0,0.00042739,18]
[342904395,1732199485885,-592.08,0.00042739,18]
[342904396,1732199485895,-500.0,0.00042739,18]
[342904397,1732199485904,-500.0,0.00042739,18]
[342904398,1732199485914,-500.0,0.00042739,18]
[342904399,1732199485923,-781.59,0.00042739,18]
[342904400,1732199485934,-500.0,0.00042739,18]
[342904401,1732199485945,-500.0,0.00042739,18]
[342904402,1732199485962,-500.0,0.00042739,18]
[342904403,1732199485971,-53.10382103,0.00042739,18]
[342904404,1732199486011,-666.97617897,0.00042739,18]
[342904405,1732199486021,-516.92548611,0.00042739,18]
[342904406,1732199486030,-568.73,0.00042739,18]
[342904407,1732199486040,-2351.59,0.00042739,18]
[342904408,1732199486051,-501.92,0.00042739,18]
[342904409,1732199486060,-831.45,0.00042739,18]
[342904410,1732199486070,-1224.29,0.00042739,18]
[342904411,1732199486079,-923.7,0.00042739,18]
[342904412,1732199486089,-725.08,0.00042739,18]
[342904413,1732199486099,-500.0,0.00042739,18]
[342904414,1732199486108,-637.17,0.00042739,18]
[342904415,1732199486117,-556.73,0.00042739,18]
[342904416,1732199486125,-500.0,0.00042739,18]
[342904417,1732199486134,-500.0,0.00042739,18]
[342904418,1732199486143,-519.94,0.00042739,18]
[342904419,1732199486152,-500.0,0.00042739,18]
[342904420,1732199486161,-1025.56,0.00042739,18]
[342904421,1732199486171,-1343.62,0.00042739,18]
[342904422,1732199486180,-500.0,0.00042739,18]
[342904423,1732199486189,-500.0,0.00042739,18]
[342904424,1732199486205,-583.5,0.00042739,18]
[342904425,1732199486215,-500.0,0.00042739,18]
[342904426,1732199486224,-500.0,0.00042739,18]
[342904427,1732199486234,-500.0,0.00042739,18]
[342904428,1732199486243,-1321.86,0.00042739,18]
[342904429,1732199486252,-83.92449253,0.00042739,18]
[342904436,1732199848721,141.45,0.00015342,2]
[342904437,1732199848749,15.05,0.00015342,2]
[342904442,1732200356144,-178.80975,0.00024235,2]
[342904443,1732200356169,-500.0,0.00024932,2]
[342904444,1732200356195,-584.54,0.00026986,120]
[342904445,1732200356221,-167.13,0.00030695,2]
[342904446,1732200356245,-156.5,0.0003272,2]
[342904447,1732200356267,-434.37680316,0.00034448,2]
[342904448,1732200356291,-365.26009593,0.00034448,2]
[342904449,1732200356316,-150.0,0.00034548,10]
[342904450,1732200356339,-150.0,0.00035315,2]
[342904451,1732200356363,-365.26009591,0.00035335,2]
[342904452,1732200356387,-647.78801153,0.00035435,2]
[342904454,1732200441157,-252.18586773,0.00035258,2]
[342904455,1732200441181,-2747.96198847,0.00035435,2]
[342904456,1732200441206,-118.48513439,0.00035435,10]
[342904457,1732200550111,-2925.21486561,0.00035435,10]
[342904458,1732200550135,-2263.0,0.000366,5]
[342904459,1732200550156,-434.37680316,0.00036928,2]
[342904460,1732200560354,3119.087431,0.00037385,2]
[342904469,1732200561534,266.19899567,0.00035435,90]
[342904470,1732200561557,504.80100433,0.00035435,90]
[342904471,1732200563711,354.0325,0.00023853,2]
[342904472,1732200564062,354.0325,0.00033288,2]
[342904479,1732200628760,152.57,0.00015342,2]